fUST/lending_fUST_20250916
["ID","MTS","AMOUNT","RATE_DAILY","PERIOD"]
[385711859,1757985039652,-417.15472785,0.00025,10]
[385711861,1757985039662,-460.0,0.00025005,2]
[385711863,1757985039671,-300.0,0.0002501,2]
[385711865,1757985039681,-480.0,0.0002504,3]
[385711867,1757985039690,-450.0,0.00025147,2]
[385711869,1757985039699,-151.863387,0.000252,2]
[385711871,1757985039709,-480.0,0.00025221,3]
[385711873,1757985039718,-480.0,0.00025231,3]
[385711875,1757985039727,-368.31269636,0.00025284,2]
[385711877,1757985039736,-890.93,0.000253,7]
[385711879,1757985039746,-395.76,0.00025314,3]
[385711881,1757985039755,-518.68054904,0.00025421,2]
[385711883,1757985039765,-1000.0,0.00025421,2]
[385711885,1757985039774,-1000.0,0.00025421,2]
[385711887,1757985039783,-500.0,0.00025421,2]
[385711889,1757985039794,-1000.0,0.00025421,2]
[385711891,1757985039803,-1000.0,0.00025421,2]
[385711893,1757985039812,-1000.0,0.00025421,2]
[385711895,1757985039821,-364.04709073,0.00025421,2]
[385711897,1757985039832,-1000.0,0.00025421,2]
[385711900,1757985039842,-480.0,0.00025495,3]
[385711901,1757985039851,-480.0,0.00025505,3]
[385711904,1757985039861,-151.863387,0.00025536,7]
[385711906,1757985039870,-560.0,0.00025553,2]
[385711908,1757985039884,-151.863387,0.00025632,2]
[385711910,1757985039893,-500.77902765,0.00025658,2]
[385711912,1757985039903,-500.39823134,0.00025658,2]
[385711914,1757985039912,-500.0,0.00025658,2]
[385711916,1757985039921,-480.0,0.00025769,3]
[385711918,1757985039930,-151.863387,0.00025776,7]
[385711920,1757985039939,-480.0,0.00025779,3]
[385711922,1757985039949,-4048.1136078,0.00025854,2]
[385711924,1757985039958,-357.51051466,0.00025854,2]
[385711926,1757985039967,-500.0,0.00025873,2]
[385711928,1757985039977,-500.0,0.00025873,2]
[385711930,1757985039985,-500.0,0.00025873,2]
[385711932,1757985039994,-500.52912716,0.00025873,2]
[385711934,1757985040004,-4048.1136078,0.00025878,2]
[385711936,1757985040013,-357.51051466,0.00025878,2]
[385711938,1757985040023,-150.0,0.00025881,2]
[385711940,1757985040034,-977.0,0.00025881,2]
[385711942,1757985040043,-634.0,0.00025881,2]
[385711944,1757985040053,-2156.0,0.00025881,2]
[385711946,1757985040062,-1000.0,0.00025888,2]
[385711948,1757985040071,-1000.0,0.00025888,2]
[385711950,1757985040081,-1000.0,0.00025888,2]
[385711952,1757985040091,-1000.0,0.00025888,2]
[385711954,1757985040100,-1000.0,0.00025888,2]
[385711956,1757985040109,-500.0,0.00025888,2]
[385711958,1757985040118,-1000.0,0.00025888,2]
[385711960,1757985040128,-500.0,0.00025888,2]
[385711962,1757985040137,-151.0,0.00025888,2]
[385711964,1757985040146,-500.0,0.00025888,2]
[385711966,1757985040155,-1000.0,0.00025888,2]
[385711968,1757985040165,-151.0,0.00025888,2]
[385711970,1757985040175,-500.0,0.00025888,2]
[385711972,1757985040185,-19696.24452324,0.00025888,2]
[385711974,1757985040194,-1000.0,0.00025888,2]
[385711976,1757985040204,-151.0,0.00025888,2]
[385711978,1757985040214,-500.0,0.00025888,2]
[385711981,1757985040224,-1000.0,0.00025888,2]
[385711983,1757985040233,-500.0,0.00025888,2]
[385711985,1757985040242,-151.0,0.00025888,2]
[385711987,1757985040251,-500.0,0.00025888,2]
[385711989,1757985040260,-151.0,0.00025888,2]
[385711991,1757985040269,-500.0,0.00025888,2]
[385711993,1757985040279,-1000.0,0.00025888,2]
[385711995,1757985040296,-500.0,0.00025888,2]
[385711997,1757985040306,-500.0,0.00025888,2]
[385711999,1757985040315,-1000.0,0.00025888,2]
[385712001,1757985040324,-500.0,0.00025888,2]
[385712003,1757985040335,-151.0,0.00025888,2]
[385712005,1757985040344,-500.0,0.00025888,2]
[385712007,1757985040352,-500.0,0.00025888,2]
[385712010,1757985040361,-151.0,0.00025888,2]
[385712012,1757985040371,-151.0,0.00025888,2]
[385712014,1757985040379,-1000.0,0.00025888,2]
[385712016,1757985040389,-500.0,0.00025888,2]
[385712018,1757985040398,-500.0,0.00025888,2]
[385712020,1757985040407,-151.0,0.00025888,2]
[385712022,1757985040416,-1000.0,0.00025888,2]
[385712024,1757985040425,-300.11116599,0.00025888,2]
[385712026,1757985040434,-151.0,0.00025888,2]
[385712028,1757985040447,-500.0,0.00025888,2]
[385712030,1757985040456,-1145.9850186,0.00025888,2]
[385712032,1757985040464,-151.0,0.00025888,2]
[385712034,1757985040478,-500.0,0.00025888,2]
[385712036,1757985040489,-500.0,0.00025888,2]
[385712038,1757985040498,-151.0,0.00025888,2]
[385712040,1757985040507,-500.0,0.00025888,2]
[385712042,1757985040517,-151.0,0.00025888,2]
[385712044,1757985040526,-500.0,0.00025888,2]
[385712046,1757985040536,-500.0,0.00025888,2]
[385712047,1757985040545,-500.0,0.00025888,2]
[385712049,1757985040554,-151.0,0.00025888,2]
[385712051,1757985040563,-151.0,0.00025888,2]
[385712053,1757985040572,-151.0,0.00025888,2]
[385712055,1757985040581,-151.0,0.00025888,2]
[385712057,1757985040590,-151.0,0.00025888,2]
[385712059,1757985040599,-174.65843349,0.00025888,2]
[385712061,1757985040609,-181.08010149,0.00025888,2]
[385712064,1757985040620,-1500.0,0.00025968,2]
[385712066,1757985040630,-1500.0,0.00025968,2]
[385712067,1757985040639,-1500.0,0.00025968,2]
[385712069,1757985040648,-1509.92163713,0.00025968,2]
[385712071,1757985040658,-5367.0,0.0002599,2]
[385712073,1757985040666,-8758.76,0.00026,7]
[385712075,1757985040676,-151.863387,0.00026016,7]
[385712078,1757985040686,-1193.69,0.00026027,4]
[385712079,1757985040695,-480.0,0.00026043,3]
[385712081,1757985040704,-660.0,0.00026101,2]
[385712083,1757985040713,-500.0,0.00026206,2]
[385712085,1757985040722,-587.0,0.00026316,2]
[385712087,1757985040731,-480.0,0.00026317,3]
[385712089,1757985040740,-1000.0,0.00026421,2]
[385712091,1757985040749,-1000.0,0.00026421,2]
[385712093,1757985040758,-151.863387,0.00026495,5]
[385712095,1757985040767,-1000.0,0.00026516,2]
[385712097,1757985040776,-2000.0,0.00026516,2]
[385712099,1757985040787,-500.0,0.00026516,2]
[385712101,1757985040796,-151.863387,0.00026576,20]
[385712103,1757985040806,-480.0,0.00026591,3]
[385712105,1757985040816,-760.0,0.00026649,2]
[385712107,1757985040826,-203.52,0.00026865,3]
[385712110,1757985040836,-151.863387,0.00027034,5]
[385712112,1757985040846,-1587.01007973,0.00027064,2]
[385712114,1757985040855,-860.0,0.00027197,2]
[385712116,1757985040865,-1500.0,0.00027397,2]
[385712118,1757985040875,-168.0,0.0002747,2]
[385712120,1757985040884,-168.0,0.00027499,2]
[385712122,1757985040893,-168.0,0.00027624,2]
[385712124,1757985040903,-500.0,0.000277,5]
[385712126,1757985040911,-960.0,0.00027745,2]
[385712127,1757985040920,-151.863387,0.00027783,20]
[385712130,1757985040930,-500.0,0.000278,5]
[385712132,1757985040938,-501.09002697,0.000278,5]
[385712134,1757985040947,-500.0,0.000278,5]
[385712136,1757985040958,-500.0,0.000278,5]
[385712138,1757985040968,-500.0,0.000278,5]
[385712140,1757985040977,-500.0,0.000278,5]
[385712142,1757985040989,-500.0,0.000278,5]
[385712144,1757985040998,-500.0,0.000278,5]
[385712146,1757985041008,-250.0,0.00027863,2]
[385712148,1757985041017,-168.0,0.00027907,2]
[385712150,1757985041026,-168.0,0.00027971,2]
[385712152,1757985041035,-2052.71,0.00028,7]
[385712154,1757985041044,-890.93,0.00028,7]
[385712156,1757985041053,-168.0,0.00028089,2]
[385712158,1757985041062,-151.863387,0.00028234,30]
[385712160,1757985041071,-1000.0,0.00028248,5]
[385712162,1757985041080,-1060.0,0.00028293,2]
[385712164,1757985041089,-500.67998248,0.00028348,5]
[385712166,1757985041099,-500.08724029,0.00028348,5]
[385712168,1757985041108,-500.81987614,0.00028348,5]
[385712170,1757985041116,-1000.0,0.00028348,5]
[385712172,1757985041126,-500.19204623,0.00028348,5]
[385712174,1757985041135,-1000.0,0.00028348,5]
[385712176,1757985041144,-823.0,0.00028587,2]
[385712178,1757985041153,-168.0,0.00028634,2]
[385712180,1757985041163,-168.0,0.0002865,2]
[385712182,1757985041172,-1193.69,0.00028767,6]
[385712184,1757985041181,-1500.0,0.00028796,5]
[385712186,1757985041191,-1160.0,0.00028841,2]
[385712188,1757985041200,-168.0,0.00028879,2]
[385712190,1757985041209,-150.0,0.00028881,2]
[385712192,1757985041219,-977.0,0.00028881,2]
[385712194,1757985041228,-634.0,0.00028881,2]
[385712196,1757985041236,-2156.0,0.00028881,2]
[385712197,1757985041245,-1500.0,0.00028896,5]
[385712198,1757985041254,-500.0,0.00028896,5]
[385712199,1757985041263,-168.0,0.00028908,2]
[385712200,1757985041273,-150.0,0.00028941,2]
[385712201,1757985041282,-501.26629294,0.0002896,5]
[385712202,1757985041290,-500.3903766,0.0002896,5]
[385712203,1757985041299,-151.863387,0.00028991,20]
[385712204,1757985041308,-151.863387,0.00028992,30]
[385712205,1757985041317,-531.33695587,0.00029,10]
[385712206,1757985041326,-160.0,0.00029,10]
[385712207,1757985041334,-3000.0,0.0002904,7]
[385712208,1757985041343,-168.0,0.00029244,2]
[385712209,1757985041354,-302.53177428,0.00029293,2]
[385712210,1757985041363,-590.0,0.000293,2]
[385712211,1757985041372,-1260.0,0.00029389,2]
[385712212,1757985041381,-168.0,0.00029544,2]
[385712213,1757985041390,-500.0,0.00029583,11]
[385712214,1757985041399,-8758.76,0.000296,7]
[385712215,1757985041408,-1458.435494,0.000296,2]
[385712216,1757985041417,-168.0,0.00029726,2]
[385712217,1757985041426,-168.0,0.00029768,2]
[385712218,1757985041436,-168.0,0.00029771,2]
[385712219,1757985041449,-3000.0,0.00029862,7]
[385712220,1757985041458,-168.0,0.00029901,2]
[385712222,1757985041467,-1360.0,0.00029937,2]
[385712224,1757985041477,-4000.0,0.0003,4]
[385712226,1757985041486,-562.30123503,0.0003,7]
[385712228,1757985041495,-154.96604367,0.0003,7]
[385712230,1757985041504,-168.0,0.00030025,2]
[385712232,1757985041514,-168.0,0.00030036,2]
[385712234,1757985041524,-890.93,0.000301,7]
[385712236,1757985041533,-1000.0,0.000301,2]
[385712238,1757985041542,-168.0,0.00030143,2]
[385712240,1757985041552,-30276.2460584,0.00030166,2]
[385712242,1757985041561,-160.0,0.00030199,3]
[385712244,1757985041570,-2000.0,0.00030199,120]
[385712246,1757985041579,-2000.0,0.00030199,120]
[385712248,1757985041589,-2000.0,0.00030199,120]
[385712250,1757985041600,-688.858,0.00030199,120]
[385712252,1757985041611,-134052.20528316,0.000302,30]
[385712254,1757985041621,-217.82061966,0.000302,30]
[385712255,1757985041631,-2000.0,0.000302,2]
[385712257,1757985041640,-2052.71,0.000302,7]
[385712259,1757985041649,-158.773916,0.000302,20]
[385712261,1757985041659,-1109.4259052,0.000302,2]
[385712263,1757985041668,-203672.28806903,0.00030201,20]
[385712266,1757985041683,-20016.6753224,0.00030201,20]
[385712454,1757985043392,-454.0,0.00030201,20]
[385716436,1757985407466,460.0,0.00030166,50]
[385716437,1757985823120,1059.0,0.00028,30]
[385716438,1757985886074,5000.0,0.000206,2]
[385716440,1757985927338,500.0,0.000206,2]
[385716441,1757985987207,500.0,0.000206,2]
[385716442,1757986027083,-204.21107825,0.00021199,2]
[385716443,1757986027105,-300.0,0.00021299,2]
[385716444,1757986027125,-258.61814071,0.00021299,2]
[385716447,1757986222358,374.04255517,0.000199,2]
[385716470,1757986232646,-171.07705775,0.00021086,2]
[385716472,1757986232655,-300.0,0.00021299,2]
[385716474,1757986232664,-300.0,0.00021299,2]
[385716475,1757986232673,-1200.0,0.00021299,2]
[385716477,1757986232683,-2000.0,0.000213,2]
[385716479,1757986232692,-2000.0,0.000213,2]
[385716481,1757986232702,-2000.0,0.000213,2]
[385716483,1757986232711,-688.858,0.000213,2]
[385716485,1757986232720,-223.12229,0.00021301,2]
[385716487,1757986232731,-157.71785018,0.0002163,2]
[385716489,1757986232739,-2428.02598978,0.00022,2]
[385716491,1757986232749,-460.0,0.00022197,3]
[385716493,1757986232758,-479.10991446,0.00022197,3]
[385716495,1757986232767,-33637.73067072,0.00022198,2]
[385716506,1757986232875,-64.10685199,0.000222,2]
[385716512,1757986238547,-473.37175771,0.00022197,3]
[385716513,1757986238557,-861.81843901,0.000222,2]
[385716514,1757986238566,-500.0,0.00022273,2]
[385716515,1757986238576,-500.0,0.00022273,2]
[385716516,1757986238585,-500.0,0.00022273,2]
[385716517,1757986238594,-500.0,0.00022273,2]
[385716518,1757986238604,-500.0,0.00022273,2]
[385716519,1757986238614,-500.0,0.00022273,2]
[385716520,1757986238623,-501.22569637,0.00022273,2]
[385716521,1757986238632,-500.0,0.00022273,2]
[385716522,1757986238641,-480.0,0.00022297,3]
[385716523,1757986238651,-480.0,0.00022297,3]
[385716524,1757986238660,-550.65484426,0.00022297,3]
[385716525,1757986238669,-434.0895853,0.00022297,3]
[385716526,1757986238679,-712.81,0.00022297,3]
[385716527,1757986238688,-465.23158674,0.00022297,3]
[385716528,1757986238697,-480.0,0.00022297,3]
[385716529,1757986238707,-480.0,0.00022297,3]
[385716530,1757986238716,-460.0,0.00022297,3]
[385716531,1757986238725,-480.0,0.00022297,3]
[385716532,1757986238734,-480.0,0.00022297,3]
[385716533,1757986238744,-480.0,0.00022297,3]
[385716534,1757986238753,-460.0,0.00022297,3]
[385716535,1757986238768,-480.0,0.00022297,3]
[385716536,1757986238779,-462.82667189,0.00022297,3]
[385716537,1757986238789,-460.0,0.00022297,3]
[385716538,1757986238798,-480.0,0.00022297,3]
[385716539,1757986238807,-480.0,0.00022297,3]
[385716540,1757986238817,-466.85169028,0.00022297,3]
[385716541,1757986238827,-480.0,0.00022297,3]
[385716542,1757986238835,-480.0,0.00022297,3]
[385716543,1757986238845,-480.0,0.00022297,3]
[385716544,1757986238854,-480.0,0.00022297,3]
[385716545,1757986238864,-480.0,0.00022297,3]
[385716546,1757986238874,-480.0,0.00022297,3]
[385716547,1757986238883,-465.82995944,0.00022297,3]
[385716548,1757986238892,-464.93054489,0.00022297,3]
[385716549,1757986238901,-480.0,0.00022297,3]
[385716550,1757986238910,-467.11324613,0.00022297,3]
[385716551,1757986238919,-462.84063661,0.00022297,3]
[385716552,1757986238929,-480.0,0.00022297,3]
[385716553,1757986238938,-236.59016559,0.00022297,3]
[385716554,1757986238947,-329.90579184,0.00022297,2]
[385716555,1757986238956,-446.44195571,0.00022297,2]
[385716556,1757986238965,-202.06422544,0.00022297,2]
[385716557,1757986238975,-460.0,0.00022298,3]
[385716558,1757986238985,-460.0,0.00022298,3]
[385716559,1757986238994,-480.0,0.00022298,3]
[385716560,1757986239004,-592.63,0.00022298,3]
[385716561,1757986239013,-460.0,0.00022298,3]
[385716562,1757986239023,-466.24241485,0.00022298,3]
[385716563,1757986239033,-480.0,0.00022298,3]
[385716564,1757986239043,-466.03593097,0.00022298,3]
[385716565,1757986239052,-461.68461345,0.00022298,3]
[385716566,1757986239061,-460.0,0.00022298,3]
[385716567,1757986239071,-480.0,0.00022298,3]
[385716568,1757986239081,-480.0,0.00022298,3]
[385716569,1757986239090,-460.0,0.00022298,3]
[385716570,1757986239100,-465.82497186,0.00022298,3]
[385716571,1757986239110,-402.76383934,0.00022298,3]
[385716572,1757986239119,-477.6439181,0.00022298,3]
[385716573,1757986239129,-466.04243333,0.00022298,3]
[385716574,1757986239140,-522.83558867,0.00022298,3]
[385716575,1757986239149,-469.06342626,0.00022298,3]
[385716576,1757986239159,-461.00657787,0.00022298,3]
[385716577,1757986239168,-466.35127836,0.00022298,3]
[385716578,1757986239177,-480.0,0.00022298,3]
[385716579,1757986239187,-480.0,0.00022298,3]
[385716580,1757986239196,-461.34628841,0.00022298,3]
[385716581,1757986239206,-464.50493121,0.00022298,3]
[385716582,1757986239216,-583.90110107,0.00022298,3]
[385716583,1757986239226,-480.0,0.00022298,3]
[385716584,1757986239235,-464.82162361,0.00022298,3]
[385716585,1757986239244,-320.21066143,0.00022298,3]
[385716586,1757986239253,-475.73,0.00022298,3]
[385716587,1757986239262,-480.0,0.00022298,3]
[385716588,1757986239272,-480.0,0.00022298,3]
[385716589,1757986239282,-480.0,0.00022298,3]
[385716590,1757986239291,-463.71567641,0.00022298,3]
[385716591,1757986239301,-460.0,0.00022298,3]
[385716592,1757986239311,-460.0,0.00022298,3]
[385716593,1757986239319,-480.0,0.00022298,3]
[385716594,1757986239329,-480.0,0.00022298,3]
[385716595,1757986239338,-428.92273156,0.00022298,3]
[385716596,1757986239348,-480.0,0.00022298,3]
[385716597,1757986239357,-480.0,0.00022298,3]
[385716598,1757986239367,-480.0,0.00022298,3]
[385716599,1757986239376,-460.0,0.00022298,3]
[385716600,1757986239386,-465.61318642,0.00022298,3]
[385716601,1757986239395,-466.15185742,0.00022298,3]
[385716602,1757986239404,-500.0,0.00022298,3]
[385716603,1757986239413,-225.13,0.00022298,3]
[385716604,1757986239423,-480.0,0.00022298,3]
[385716605,1757986239432,-460.0,0.00022298,3]
[385716606,1757986239442,-460.0,0.00022298,3]
[385716607,1757986239451,-460.0,0.00022298,3]
[385716608,1757986239460,-480.0,0.00022298,3]
[385716609,1757986239469,-460.0,0.00022298,3]
[385716610,1757986239478,-480.0,0.00022298,3]
[385716611,1757986239488,-460.0,0.00022298,3]
[385716612,1757986239497,-568.52,0.00022298,3]
[385716613,1757986239507,-480.0,0.00022298,3]
[385716614,1757986239516,-467.83779678,0.00022298,3]
[385716615,1757986239525,-480.0,0.00022298,3]
[385716616,1757986239534,-480.0,0.00022298,3]
[385716617,1757986239543,-480.0,0.00022298,3]
[385716618,1757986239552,-464.82109638,0.00022298,3]
[385716619,1757986239562,-480.0,0.00022298,3]
[385716620,1757986239571,-480.0,0.00022298,3]
[385716621,1757986239581,-460.0,0.00022298,3]
[385716622,1757986239590,-480.0,0.00022298,3]
[385716623,1757986239600,-466.48153073,0.00022298,3]
[385716624,1757986239610,-530.04,0.00022298,3]
[385716625,1757986239620,-480.0,0.00022298,3]
[385716626,1757986239630,-480.0,0.00022298,3]
[385716627,1757986239639,-462.09914273,0.00022298,3]
[385716628,1757986239649,-460.0,0.00022298,3]
[385716629,1757986239659,-463.09383231,0.00022298,3]
[385716630,1757986239668,-480.0,0.00022298,3]
[385716631,1757986239677,-480.0,0.00022298,3]
[385716632,1757986239686,-766.7,0.00022298,3]
[385716633,1757986239696,-505.05865758,0.00022298,3]
[385716634,1757986239707,-468.43021712,0.00022299,3]
[385716635,1757986239716,-466.71086748,0.00022299,3]
[385716636,1757986239725,-474.16060294,0.00022299,3]
[385716637,1757986239734,-469.58053307,0.00022299,3]
[385716638,1757986239743,-464.26427598,0.00022299,3]
[385716639,1757986239752,-464.04814383,0.00022299,3]
[385716640,1757986239762,-468.56860374,0.00022299,3]
[385716641,1757986239771,-468.51870755,0.00022299,3]
[385716642,1757986239780,-480.0,0.00022299,3]
[385716643,1757986239790,-466.94134135,0.00022299,3]
[385716644,1757986239799,-463.10819494,0.00022299,3]
[385716645,1757986239808,-460.0,0.00022299,3]
[385716646,1757986239818,-518.55243756,0.00022299,3]
[385716647,1757986239827,-480.0,0.00022299,3]
[385716648,1757986239837,-464.54903723,0.00022299,3]
[385716649,1757986239846,-474.23454201,0.00022299,3]
[385716650,1757986239856,-470.48979992,0.00022299,3]
[385716651,1757986239874,-462.89528863,0.00022299,3]
[385716652,1757986239883,-460.0,0.00022299,3]
[385716653,1757986239892,-237.22168213,0.00022299,3]
[385716654,1757986239902,-462.21702406,0.00022299,3]
[385716655,1757986239912,-460.0,0.00022299,3]
[385716656,1757986239921,-460.0,0.00022299,3]
[385716657,1757986239931,-464.29936974,0.00022299,3]
[385716658,1757986239940,-460.0,0.00022299,3]
[385716659,1757986239949,-460.0,0.00022299,3]
[385716660,1757986239958,-460.0,0.00022299,3]
[385716661,1757986239967,-468.01,0.00022299,3]
[385716662,1757986239977,-460.0,0.00022299,3]
[385716663,1757986239986,-480.0,0.00022299,3]
[385716664,1757986239995,-460.0,0.00022299,3]
[385716666,1757986240005,-460.0,0.00022299,3]
[385716667,1757986240014,-460.0,0.00022299,3]
[385716668,1757986240023,-460.0,0.00022299,3]
[385716669,1757986240032,-460.0,0.00022299,3]
[385716670,1757986240042,-460.0,0.00022299,3]
[385716671,1757986240051,-460.0,0.00022299,3]
[385716672,1757986240060,-460.0,0.00022299,3]
[385716673,1757986240070,-460.0,0.00022299,3]
[385716674,1757986240079,-460.0,0.00022299,3]
[385716675,1757986240088,-460.0,0.00022299,3]
[385716676,1757986240097,-460.0,0.00022299,3]
[385716677,1757986240107,-480.0,0.00022299,3]
[385716678,1757986240117,-480.0,0.00022299,3]
[385716679,1757986240127,-460.0,0.00022299,3]
[385716680,1757986240136,-460.0,0.00022299,3]
[385716681,1757986240146,-460.82732196,0.00022299,3]
[385716682,1757986240155,-460.0,0.00022299,3]
[385716683,1757986240164,-478.71,0.00022299,3]
[385716684,1757986240173,-462.32073609,0.00022299,3]
[385716685,1757986240182,-461.5567393,0.00022299,3]
[385716686,1757986240191,-460.0,0.00022299,3]
[385716687,1757986240201,-460.0,0.00022299,3]
[385716688,1757986240211,-460.0,0.00022299,3]
[385716689,1757986240223,-460.0,0.00022299,3]
[385716690,1757986240233,-487.14,0.00022299,3]
[385716691,1757986240242,-460.0,0.00022299,3]
[385716692,1757986240251,-460.0,0.00022299,3]
[385716693,1757986240261,-460.0,0.00022299,3]
[385716694,1757986240271,-482.08,0.00022299,3]
[385716695,1757986240280,-460.0,0.00022299,3]
[385716696,1757986240292,-510.22958171,0.00022299,3]
[385716697,1757986240302,-460.0,0.00022299,3]
[385716698,1757986240311,-440.21574667,0.00022299,3]
[385716699,1757986240321,-460.0,0.00022299,3]
[385716700,1757986240330,-468.06899166,0.00022299,3]
[385716701,1757986240339,-479.81222365,0.00022299,3]
[385716702,1757986240348,-463.63914843,0.00022299,3]
[385716703,1757986240358,-466.05403283,0.00022299,3]
[385716704,1757986240367,-465.88370705,0.00022299,3]
[385716705,1757986240377,-460.0,0.00022299,3]
[385716706,1757986240386,-467.01606489,0.00022299,3]
[385716707,1757986240395,-460.0,0.00022299,3]
[385716708,1757986240405,-460.0,0.00022299,3]
[385716709,1757986240414,-460.53924599,0.00022299,3]
[385716710,1757986240423,-480.0,0.00022299,3]
[385716711,1757986240432,-471.11915743,0.00022299,3]
[385716712,1757986240442,-480.0,0.00022299,3]
[385716713,1757986240451,-480.0,0.00022299,3]
[385716714,1757986240460,-480.0,0.00022299,3]
[385716715,1757986240470,-463.35406826,0.00022299,3]
[385716716,1757986240479,-480.0,0.00022299,3]
[385716717,1757986240488,-460.0,0.00022299,3]
[385716718,1757986240497,-480.0,0.00022299,3]
[385716719,1757986240507,-480.0,0.00022299,3]
[385716720,1757986240516,-460.0,0.00022299,2]
[385716721,1757986240526,-463.0067531,0.00022299,3]
[385716722,1757986240535,-504.1195636,0.00022299,3]
[385716723,1757986240544,-463.94138514,0.00022299,3]
[385716724,1757986240554,-464.03755929,0.00022299,3]
[385716725,1757986240563,-462.79179522,0.00022299,3]
[385716726,1757986240572,-463.48363518,0.00022299,3]
[385716727,1757986240581,-465.384859,0.00022299,3]
[385716728,1757986240590,-480.0,0.00022299,3]
[385716729,1757986240600,-469.23904815,0.00022299,3]
[385716730,1757986240609,-462.30307679,0.00022299,3]
[385716731,1757986240619,-464.3571426,0.00022299,3]
[385716732,1757986240628,-463.81468325,0.00022299,3]
[385716733,1757986240638,-480.0,0.00022299,3]
[385716734,1757986240647,-467.13069599,0.00022299,3]
[385716735,1757986240657,-481.66,0.00022299,3]
[385716736,1757986240666,-460.0,0.00022299,3]
[385716737,1757986240759,-228.46707735,0.00022299,3]
[385716738,1757986240768,-460.0,0.00022299,3]
[385716739,1757986240777,-460.0,0.00022299,3]
[385716740,1757986240787,-460.0,0.00022299,3]
[385716741,1757986240796,-463.3059988,0.00022299,3]
[385716742,1757986240805,-471.8787857,0.00022299,3]
[385716743,1757986240815,-491.71117501,0.00022299,3]
[385716744,1757986240824,-465.62577042,0.00022299,3]
[385716745,1757986240834,-466.43669867,0.00022299,3]
[385716746,1757986240843,-480.0,0.00022299,3]
[385716747,1757986240852,-465.78097123,0.00022299,3]
[385716748,1757986240861,-1004.5452756,0.00022299,3]
[385716749,1757986240872,-571.9,0.00022299,3]
[385716750,1757986240881,-539.74258546,0.00022299,3]
[385716751,1757986240891,-460.0,0.00022299,3]
[385716752,1757986240900,-535.42646342,0.00022299,3]
[385716753,1757986240909,-462.51688798,0.00022299,3]
[385716754,1757986240919,-463.99412729,0.00022299,3]
[385716755,1757986240929,-480.0,0.00022299,3]
[385716756,1757986240938,-482.64198573,0.00022299,3]
[385716757,1757986240947,-480.0,0.00022299,3]
[385716758,1757986240957,-472.64741057,0.00022299,3]
[385716759,1757986240966,-460.0,0.00022299,3]
[385716760,1757986240976,-464.71408496,0.00022299,3]
[385716761,1757986240985,-460.0,0.00022299,3]
[385716762,1757986240994,-490.35312261,0.00022299,3]
[385716763,1757986241003,-460.0,0.00022299,3]
[385716764,1757986241012,-495.66028776,0.00022299,3]
[385716765,1757986241021,-460.0,0.00022299,3]
[385716766,1757986241031,-464.57600481,0.00022299,3]
[385716767,1757986241040,-593.56416385,0.00022299,3]
[385716768,1757986241049,-480.0,0.00022299,3]
[385716769,1757986241058,-466.17935213,0.00022299,3]
[385716770,1757986241068,-460.0,0.00022299,3]
[385716771,1757986241078,-480.0,0.00022299,3]
[385716772,1757986241087,-465.41446303,0.00022299,3]